bitfinex/quotes_ETHUSD_20251125
["timestamp","ask_amount","ask_price","bid_price","bid_amount"]
[1764078623176,0.221,2914.9,2914.5,9.16365801]
[1764078623696,0.4908,2915.9,2914.6,0.72559411]
[1764078623978,0.221,2915.4,2914.9,0.58496]
[1764078624277,0.0012,2915.0,2914.9,1.04606]
[1764078624647,0.0012,2915.0,2914.9,0.58496]
[1764078624846,0.0012,2915.0,2914.9,1.04606]
[1764078625044,0.0012,2915.0,2914.9,5.20230353]
[1764078625261,0.189,2916.0,2914.9,15.49425179]
[1764078625595,0.94366841,2915.9,2915.1,0.72559411]
[1764078625789,0.45286841,2915.9,2915.5,0.09436]
[1764078626297,0.45286841,2915.9,2915.1,0.72559411]
[1764078626298,0.0082,2915.6,2915.1,0.72559411]
[1764078626496,0.0082,2915.6,2915.2,0.09436]
[1764078626673,0.486,2915.5,2915.2,0.09436]
[1764078626870,0.04287135,2915.7,2915.2,0.09436]
[1764078627070,0.41,2915.9,2915.3,0.72559411]
[1764078627276,0.9008,2915.9,2915.4,0.09436]
[1764078627676,0.0082,2915.5,2915.4,0.09436]
[1764078628084,0.4942,2915.5,2915.3,0.72559411]
[1764078628265,0.221,2915.5,2915.3,0.81995411]
[1764078628466,0.221,2915.5,2915.4,0.09436]
[1764078628670,0.221,2915.5,2915.3,0.72559411]
[1764078628867,0.221,2915.5,2915.4,1.04606]
[1764078629074,0.002,2915.6,2915.4,7.8118221]
[1764078629280,0.223,2915.6,2915.5,5.73253775]
[1764078630100,0.002,2915.6,2915.5,5.73253775]
[1764078630695,0.4908,2916.4,2915.5,5.73253775]
[1764078630696,0.221,2916.4,2916.2,0.09436]
[1764078630905,0.7118,2916.4,2916.2,0.09436]
[1764078631114,0.0082,2916.3,2916.2,0.09436]
[1764078631418,0.53706253,2916.3,2915.9,0.09436]
[1764078631577,0.0082,2916.3,2915.7,10.2890678]
[1764078631780,0.189,2916.8,2916.2,0.77106]
[1764078632091,0.221,2916.7,2916.6,0.09436]
[1764078632902,0.75805665,2916.7,2915.8,0.72559411]
[1764078633100,0.486,2916.7,2916.2,0.09436]
[1764078633303,0.221,2916.6,2915.9,14.71040231]
[1764078633540,0.189,2916.8,2916.6,0.09436]
[1764078633834,0.221,2916.7,2916.6,0.09436]
[1764078634038,0.221,2916.8,2916.7,0.4906]
[1764078634443,0.221,2916.8,2916.6,0.09436]
[1764078634939,0.0082,2916.7,2916.6,0.09436]
[1764078635151,0.221,2916.8,2916.6,3.52300979]
[1764078635320,0.221,2916.8,2916.7,0.4906]
[1764078635509,0.221,2916.8,2916.6,6.95165958]
[1764078635844,0.221,2916.8,2916.6,3.52300979]
[1764078636025,0.0082,2916.7,2916.6,3.52300979]
[1764078636637,0.221,2916.8,2916.6,3.52300979]
[1764078636942,0.013,2916.7,2916.6,0.09436]
[1764078637311,3.92283224,2916.7,2916.3,0.09436]
[1764078637747,0.0552,2916.4,2916.3,0.09436]
[1764078638353,0.2796,2916.4,2916.3,0.09436]
[1764078638527,0.7661,2916.4,2916.3,0.09436]
[1764078638929,0.7661,2916.4,2915.8,0.09436]
[1764078639154,0.221,2916.4,2915.8,3.42958026]
[1764078639336,0.221,2916.4,2916.1,0.09436]
[1764078639525,0.7118,2916.4,2916.1,0.09436]
[1764078639852,0.0586,2916.2,2916.0,0.09436]
[1764078640051,0.4908,2916.3,2915.4,6.8601221]
[1764078640254,0.4908,2916.3,2915.8,0.09436]
[1764078640433,0.4908,2916.3,2915.3,6.95470946]
[1764078640434,0.0586,2915.5,2915.3,6.95470946]
[1764078640626,0.221,2915.4,2915.3,3.52453075]
[1764078641150,0.221,2915.4,2915.3,3.43017075]
[1764078641454,3.42916666,2916.2,2915.3,3.43017075]
[1764078641455,0.4908,2916.7,2915.3,15.39800099]
[1764078641635,0.26385812,2916.6,2915.4,0.72559411]
[1764078641953,0.26385812,2916.6,2915.9,0.09436]
[1764078642157,0.4908,2916.5,2915.9,0.09436]
[1764078642462,0.0586,2916.0,2915.9,0.09436]
[1764078642761,0.221,2916.0,2915.9,0.9517]
[1764078642965,0.04285518,2916.8,2916.6,0.09436]
[1764078643125,0.2796,2916.7,2916.6,0.09436]
[1764078643463,0.2796,2916.7,2916.4,0.09436]
[1764078643625,0.0049,2916.5,2916.2,0.09436]
[1764078643973,0.53365812,2916.6,2916.2,0.09436]
[1764078644142,0.4752,2916.3,2916.2,0.09436]
[1764078644634,0.4752,2916.3,2915.8,0.72559411]
[1764078644635,0.5492,2916.3,2916.0,0.09436]
[1764078644832,0.2476,2915.9,2915.7,0.09436]
[1764078645058,10.50659774,2916.7,2915.6,4.24969302]
[1764078645059,0.221,2915.8,2915.6,4.24969302]
[1764078645264,0.4908,2916.6,2915.6,4.24969302]
[1764078645265,0.221,2915.7,2915.6,4.24969302]
[1764078645624,0.221,2915.7,2915.6,4.74029302]
[1764078645952,0.04285812,2916.6,2916.0,0.09436]
[1764078646159,0.221,2916.5,2915.6,11.01498454]
[1764078646361,0.221,2916.5,2916.2,0.09436]
[1764078646560,0.221,2916.5,2915.8,1.18669411]
[1764078646762,0.221,2916.5,2916.4,0.09436]
[1764078647060,0.221,2916.5,2915.8,1.18669411]
[1764078647061,0.221,2916.5,2916.3,3.52331764]
[1764078647374,0.7118,2916.4,2915.8,0.09436]
[1764078647562,0.75466106,2916.4,2915.9,0.09436]
[1764078647767,0.4908,2916.3,2915.9,0.09436]
[1764078647964,0.0586,2916.0,2915.9,0.09436]
[1764078648274,0.0578,2916.0,2915.9,0.09436]
[1764078648975,0.0578,2916.0,2915.6,0.81995411]
[1764078649179,0.1882,2915.9,2915.6,4.24976839]
[1764078649381,0.221,2915.8,2915.7,0.09436]
[1764078649758,0.2823,2915.8,2915.7,0.09436]
[1764078650085,0.7607,2915.8,2915.5,0.001]
[1764078650293,0.466304,2915.6,2915.5,0.001]
[1764078650578,1.51520622,2915.6,2915.5,0.001]
[1764078650766,1.99360622,2915.6,2915.5,0.001]
[1764078651159,6.14902609,2915.6,2915.5,0.001]
[1764078651659,7.06154338,2915.6,2915.5,0.001]
[1764078652063,6.14902609,2915.6,2915.5,0.001]
[1764078652998,7.28446768,2915.6,2915.5,0.001]
[1764078653177,6.37002609,2915.6,2915.5,0.001]
[1764078654583,6.41289891,2915.6,2915.5,0.001]
[1764078654955,6.37002609,2915.6,2915.5,0.001]
[1764078655151,6.41289891,2915.6,2915.5,0.001]
[1764078655855,6.41251148,2915.6,2915.5,0.001]
[1764078656056,6.19151148,2915.6,2915.5,0.001]
[1764078656304,6.36963866,2915.6,2915.5,0.001]
[1764078656659,6.14863866,2915.6,2915.5,0.001]
[1764078656860,6.36963866,2915.6,2915.5,0.001]
[1764078658264,6.41251148,2915.6,2915.5,0.001]
[1764078658480,6.36963866,2915.6,2915.5,0.001]
[1764078658991,6.41251148,2915.6,2915.5,0.001]
[1764078661087,6.36963866,2915.6,2915.5,0.001]
[1764078662400,0.405504,2915.2,2913.9,0.001]
[1764078662561,0.405504,2914.5,2913.9,0.001]
[1764078662765,0.221,2914.4,2913.9,0.001]
[1764078663300,0.6989,2914.4,2913.9,0.001]
[1764078663704,0.0706,2914.0,2913.9,0.001]
[1764078664105,0.5445,2914.0,2913.9,0.001]
[1764078664283,0.7655,2914.0,2913.9,0.001]
[1764078664688,0.2916,2914.0,2913.9,0.001]
[1764078665206,5.14590621,2914.0,2913.9,0.001]
[1764078665408,2.21268367,2914.0,2913.9,0.001]
[1764078665581,5.64439266,2914.0,2913.9,0.001]
[1764078665908,0.221,2914.0,2913.9,0.001]
[1764078666107,0.2916,2914.0,2913.9,0.001]
[1764078666310,0.7655,2914.0,2913.9,0.001]
[1764078667004,1.171004,2914.0,2913.9,0.001]
[1764078667773,4.60271299,2914.0,2913.9,0.001]
[1764078668006,4.12881299,2914.0,2913.9,0.001]
[1764078668206,4.60271299,2914.0,2913.9,0.001]
[1764078668789,0.2956,2914.0,2913.9,0.001]
[1764078669094,0.7655,2914.0,2913.9,0.001]
[1764078669696,0.2956,2914.0,2913.9,0.001]
[1764078669878,3.91181299,2914.0,2913.9,0.001]
[1764078670074,3.72730899,2914.0,2913.9,0.001]
[1764078670502,3.65270899,2914.0,2913.9,0.001]
[1764078670707,3.43164043,2914.1,2913.9,0.001]
[1764078670907,0.221,2914.0,2913.9,0.001]
[1764078671433,0.2916,2914.0,2913.9,0.001]
[1764078671923,3.72330899,2914.0,2913.9,0.001]
[1764078672095,3.72250899,2914.0,2913.9,0.001]
[1764078672299,3.65190899,2914.0,2913.9,0.001]
[1764078672986,3.72650899,2914.0,2913.9,0.001]
[1764078673186,3.65190899,2914.0,2913.9,0.001]
[1764078673716,0.2202,2914.0,2913.9,0.001]
[1764078674016,3.72250899,2914.0,2913.9,0.001]
[1764078674222,3.65190899,2914.0,2913.9,0.001]
[1764078674407,0.2202,2914.0,2913.9,0.4885]
[1764078674610,3.72250899,2914.0,2913.9,0.001]
[1764078674918,0.2916,2914.0,2913.9,0.001]
[1764078675225,1.21390036,2914.0,2913.9,0.001]
[1764078676001,4.64560935,2914.0,2913.9,0.001]
[1764078676419,4.91909452,2914.0,2913.9,0.001]
[1764078676718,4.44519452,2914.0,2913.9,0.001]
[1764078677293,4.44518275,2914.0,2913.9,0.001]
[1764078677709,4.03967875,2914.0,2913.9,0.001]
[1764078678233,3.96907875,2914.0,2913.9,0.001]
[1764078678398,3.96907875,2914.0,2913.9,0.4885]
[1764078679022,4.03967875,2914.0,2913.9,0.001]
[1764078679229,0.53736976,2914.0,2913.9,0.4885]
[1764078679391,3.96907875,2914.0,2913.9,0.4885]
[1764078679718,0.221,2914.0,2913.9,0.9805]
[1764078680534,0.53830218,2914.0,2913.9,0.9805]
[1764078680733,0.221,2914.0,2913.9,0.9805]
[1764078681331,0.53828954,2914.0,2913.9,0.9805]
[1764078682634,0.31728954,2914.0,2913.9,0.9805]
[1764078682812,3.96999853,2914.0,2913.9,0.4885]
[1764078683014,3.96999853,2914.0,2913.9,0.001]
[1764078683214,4.03709853,2914.0,2913.9,0.001]
[1764078683532,3.96999853,2914.0,2913.9,0.001]
[1764078683731,4.04119853,2914.0,2913.9,0.001]
[1764078684309,3.96999853,2914.0,2913.9,0.001]
[1764078684504,0.53828954,2914.0,2913.9,0.4868]
[1764078684732,3.4312928,2914.4,2913.9,0.9658]
[1764078684933,0.53858162,2914.3,2913.9,0.48]
[1764078685150,0.221,2914.3,2914.0,0.479]
[1764078685309,0.221,2914.3,2914.2,0.1853]
[1764078685516,0.53866223,2914.3,2914.2,1.1501]
[1764078685917,0.38476223,2914.3,2913.9,0.001]
[1764078686136,0.53866223,2914.2,2913.9,0.001]
[1764078686337,0.221,2914.2,2913.9,0.48]
[1764078686513,0.221,2914.2,2914.1,0.6711]
[1764078686838,0.53876249,2914.2,2914.1,0.6711]
[1764078687045,0.53876249,2914.2,2914.1,1.1501]
[1764078687251,0.221,2914.2,2914.1,4.58169122]
[1764078688062,0.221,2914.2,2914.1,1.24446]
[1764078688653,0.221,2914.2,2914.1,4.67605122]
[1764078689353,3.43103493,2914.6,2914.2,0.09436]
[1764078689567,1.27214675,2914.5,2914.2,0.09436]
[1764078689772,0.3181529,2914.4,2913.9,0.75966]
[1764078689963,0.0048,2914.2,2913.9,0.001]
[1764078690173,0.5391529,2914.1,2913.9,0.001]
[1764078690459,0.221,2914.1,2913.9,0.001]
[1764078690757,0.3181846,2914.0,2913.9,0.001]
[1764078691142,0.3852846,2914.0,2913.9,0.001]
[1764078691927,0.3181846,2914.0,2913.9,0.001]
[1764078692132,0.8665846,2914.0,2913.9,0.001]
[1764078692638,1.60026969,2914.0,2913.9,0.001]
[1764078692960,5.03197868,2914.0,2913.9,0.001]
[1764078693454,4.96027868,2914.0,2913.9,0.001]
[1764078694164,0.75186969,2914.0,2913.9,0.001]
[1764078694331,0.75186969,2914.0,2913.9,0.4868]
[1764078694535,0.2391846,2914.0,2913.9,0.4868]
[1764078694732,0.2391846,2914.0,2913.9,0.9658]
[1764078694937,4.40457868,2914.0,2913.9,0.001]
[1764078695136,4.95297868,2914.0,2913.9,0.001]
[1764078695541,4.99587504,2914.0,2913.9,0.001]
[1764078695940,4.95297868,2914.0,2913.9,0.001]
[1764078696186,4.95217868,2914.0,2913.9,0.001]
[1764078696357,4.88047868,2914.0,2913.9,0.001]
[1764078696565,4.40377868,2914.0,2913.9,0.001]
[1764078697283,4.87647868,2914.0,2913.9,0.001]
[1764078698266,4.87847868,2914.0,2913.9,0.001]
[1764078699273,4.99787504,2914.0,2913.9,0.001]
[1764078699441,4.95497868,2914.0,2913.9,0.001]
[1764078700776,4.87847868,2914.0,2913.9,0.001]
[1764078701185,4.40577868,2914.0,2913.9,0.001]
[1764078701349,4.40577868,2914.0,2913.9,0.4868]
[1764078701785,4.40577868,2914.0,2913.9,0.9658]
[1764078702352,4.40577868,2914.0,2913.9,0.001]
[1764078703245,4.40577868,2914.0,2913.9,0.4868]
[1764078703554,4.40577868,2914.0,2913.9,0.9658]
[1764078703555,0.2403846,2914.0,2913.9,0.9658]
[1764078703967,4.14549759,2914.0,2913.9,0.001]
[1764078704208,6.08380149,2914.0,2913.9,0.001]
[1764078704957,5.60650149,2914.0,2913.9,0.001]
[1764078707952,5.31760149,2914.0,2913.9,0.001]
[1764078708160,6.01530149,2914.0,2913.9,0.001]
[1764078708565,6.08780149,2914.0,2913.9,0.001]
[1764078709287,6.01530149,2914.0,2913.9,0.001]
[1764078709496,6.08780149,2914.0,2913.9,0.001]
[1764078710469,6.13069785,2914.0,2913.9,0.001]
[1764078711397,6.08780149,2914.0,2913.9,0.001]
[1764078714077,6.13069785,2914.0,2913.9,0.001]
[1764078714489,6.08780149,2914.0,2913.9,0.001]
[1764078714860,31.6672628,2914.0,2913.9,0.001]
[1764078715062,31.6672628,2914.0,2913.6,0.001]
[1764078715063,5.8227,2913.7,2913.6,0.001]
[1764078715270,8.03504825,2913.7,2913.6,0.001]
[1764078715488,12.7074695,2913.7,2913.6,0.001]
[1764078715797,5.68896145,2913.7,2913.6,0.001]
[1764078716290,6.60600363,2913.7,2913.6,0.001]
[1764078716503,5.99650289,2913.7,2913.6,0.001]
[1764078716685,6.21750289,2913.7,2913.6,0.001]
[1764078717306,5.30046071,2913.7,2913.6,0.001]
[1764078717504,4.18485671,2913.7,2913.6,0.4927]
[1764078717706,5.13145082,2913.7,2913.6,0.966]
[1764078717890,5.13145082,2913.7,2913.6,0.9742]
[1764078718763,4.40585671,2913.7,2913.6,0.4927]
[1764078719101,4.89516071,2913.7,2913.6,0.001]
[1764078719302,5.39956148,2913.7,2913.6,0.001]
[1764078719476,4.89516071,2913.7,2913.6,0.001]
[1764078720202,5.35586071,2913.7,2913.6,0.001]
[1764078720512,4.93726148,2913.7,2913.6,0.001]
[1764078720701,4.89436071,2913.7,2913.6,0.001]
[1764078721275,6.12435559,2913.7,2913.6,0.001]
[1764078721873,6.08145482,2913.7,2913.6,0.001]
[1764078722199,6.998497,2913.7,2913.6,0.001]
[1764078722380,7.08629774,2913.7,2913.6,0.001]
[1764078722572,6.998497,2913.7,2913.6,0.001]
[1764078722767,6.315997,2913.7,2913.6,0.001]
[1764078722968,6.536997,2913.7,2913.6,0.001]
[1764078723183,6.315997,2913.7,2913.6,0.001]
[1764078723400,6.536997,2913.7,2913.6,0.001]
[1764078723709,6.998497,2913.7,2913.6,0.001]
[1764078724003,6.9819124,2913.7,2913.6,0.001]
[1764078724389,6.06487022,2913.7,2913.6,0.001]
[1764078724705,6.65707173,2913.7,2913.6,0.001]
[1764078726505,21.17578873,2913.7,2913.6,0.001]
[1764078726674,14.51025836,2913.7,2913.6,0.001]
[1764078726874,14.64785039,2913.7,2913.6,0.001]
[1764078727494,7.15353539,2913.7,2913.6,0.001]
[1764078727696,15.76583695,2913.7,2913.6,0.001]
[1764078727902,17.71978299,2913.7,2913.6,0.001]
[1764078728405,17.47512999,2913.7,2913.6,0.001]
[1764078728605,25.75581599,2913.7,2913.6,0.001]
[1764078728914,23.92122643,2913.7,2913.6,0.001]
[1764078729373,25.75531768,2913.7,2913.6,0.001]
[1764078729575,26.98730968,2913.7,2913.6,0.001]
[1764078729776,4.75569811,2913.6,2913.3,0.001]
[1764078729991,16.45401864,2913.4,2913.3,0.001]
[1764078730185,16.45401864,2913.4,2912.7,0.001]
[1764078730186,0.405504,2913.1,2912.7,0.001]
[1764078730499,12.72564997,2913.1,2912.7,0.001]
[1764078730678,12.08349821,2913.1,2912.7,0.001]
[1764078731613,15.28041221,2913.1,2912.7,0.001]
[1764078732084,14.14951281,2913.1,2912.7,0.001]
[1764078732419,13.82390274,2913.1,2912.7,0.001]
[1764078732613,13.92990274,2913.1,2912.7,0.001]
[1764078732914,14.33167514,2913.1,2912.7,0.001]
[1764078733115,13.10939503,2913.1,2912.7,0.001]
[1764078733313,14.33007868,2913.1,2912.7,0.001]
[1764078733517,0.405504,2912.9,2912.7,0.001]
[1764078733818,12.42809874,2912.8,2912.7,0.001]
[1764078734117,3.36351617,2912.8,2912.7,0.001]
[1764078734283,2.48566583,2912.8,2912.7,0.001]
[1764078734479,5.91878859,2912.8,2912.7,0.001]
[1764078734717,5.83878859,2912.8,2912.7,0.001]
[1764078735017,5.92958859,2912.8,2912.7,0.001]
[1764078735416,5.92958859,2912.8,2912.7,0.4718]
[1764078735417,5.61778859,2912.8,2912.7,0.4718]
[1764078735712,5.83878859,2912.8,2912.7,0.9533]
[1764078736083,5.21228459,2912.8,2912.7,0.4718]
[1764078736286,3.75128069,2912.8,2912.7,0.9533]
[1764078736484,3.97228069,2912.8,2912.7,0.9533]
[1764078736708,4.6978748,2912.8,2912.7,0.9533]
[1764078737689,5.23709283,2912.8,2912.7,0.001]
[1764078737931,5.1941788,2912.8,2912.7,0.001]
[1764078738158,4.8823788,2912.8,2912.7,0.4718]
[1764078738361,5.5848788,2912.8,2912.7,0.9533]
[1764078739426,6.08289283,2912.8,2912.7,0.001]
[1764078739810,6.0399788,2912.8,2912.7,0.001]
[1764078740014,5.5848788,2912.8,2912.7,0.4554]
[1764078741020,14.73055149,2912.8,2912.7,0.001]
[1764078741221,6.71373749,2912.8,2912.7,0.001]
[1764078741421,6.38543675,2912.8,2912.7,0.001]
[1764078741608,7.30088754,2912.8,2912.7,0.001]
[1764078742142,7.07988754,2912.8,2912.7,0.001]
[1764078742311,8.37845495,2912.8,2912.7,0.001]
[1764078742510,21.12627855,2912.8,2912.7,0.001]
[1764078742709,18.78564855,2912.8,2912.7,0.001]
[1764078742913,17.83476855,2912.8,2912.7,0.001]
[1764078743139,16.91931776,2912.8,2912.7,0.001]
[1764078743334,15.71226676,2912.8,2912.7,0.001]
[1764078743646,15.66866676,2912.8,2912.7,0.001]
[1764078743949,13.91480276,2912.8,2912.7,0.001]
[1764078744254,11.36776776,2912.8,2912.7,0.001]
[1764078744455,10.94457869,2912.8,2912.7,0.001]
[1764078744743,10.94377869,2912.8,2912.7,0.001]
[1764078744949,14.65437869,2912.8,2912.7,0.001]
[1764078745250,10.34881128,2912.8,2912.7,0.001]
[1764078745417,14.06387602,2912.8,2912.7,0.001]
[1764078745620,11.46721202,2912.8,2912.7,0.001]
[1764078745820,14.19883809,2912.8,2912.7,0.001]
[1764078746148,24.22493579,2912.8,2912.7,0.001]
[1764078747132,24.67178179,2912.8,2912.7,0.001]
[1764078747959,20.97865179,2912.8,2912.7,0.001]
[1764078748718,20.55546272,2912.8,2912.7,0.001]
[1764078749350,23.40092672,2912.8,2912.7,0.001]
[1764078749559,23.82411579,2912.8,2912.7,0.001]
[1764078750050,24.44102992,2912.7,2912.6,0.001]
[1764078750252,24.17866987,2912.7,2912.6,0.001]
[1764078751059,21.25517187,2912.7,2912.6,0.001]
[1764078751260,21.25517187,2912.7,2912.1,0.001]
[1764078751261,19.85517187,2912.7,2912.1,0.001]
[1764078751552,16.73285911,2911.9,2911.8,0.001]
[1764078751751,4.025504,2911.7,2911.0,0.001]
[1764078751952,14.17901664,2911.4,2911.0,0.001]
[1764078752155,23.76313714,2911.4,2911.0,0.001]
[1764078752353,21.13632014,2911.4,2911.0,0.001]
[1764078752553,19.91564806,2911.4,2911.0,0.001]
[1764078752756,3.62,2911.2,2911.0,0.001]
[1764078752958,16.38435828,2911.1,2911.0,0.001]
[1764078753172,21.50853201,2911.1,2911.0,0.001]
[1764078753343,18.27245047,2911.1,2911.0,0.001]
[1764078753666,18.23993276,2910.8,2910.5,0.001]
[1764078753866,21.18079071,2910.8,2910.5,0.001]
[1764078754065,21.66759071,2910.8,2910.5,0.001]
[1764078754269,17.78818695,2910.8,2910.5,0.001]
[1764078754870,14.91038695,2910.8,2910.5,0.001]
[1764078755042,14.02948048,2910.8,2910.5,0.001]
[1764078755237,10.40948048,2910.8,2910.5,0.001]
[1764078755448,9.49661224,2910.8,2910.5,0.001]
[1764078755965,9.48431224,2910.8,2910.5,0.001]
[1764078756164,9.48431224,2910.8,2910.7,0.4554]
[1764078756670,9.80090494,2910.8,2910.7,0.4554]
[1764078756869,10.43670568,2910.8,2910.7,0.001]
[1764078757281,10.89480568,2910.8,2910.7,0.001]
[1764078757475,11.36091141,2910.8,2910.7,0.001]
[1764078758375,19.42599011,2910.6,2910.5,0.001]
[1764078758579,14.24665311,2910.5,2910.4,0.001]
[1764078758777,14.24665311,2910.5,2910.2,0.001]
[1764078758778,17.85384803,2910.5,2910.2,0.001]
[1764078758989,24.34261364,2910.3,2910.2,0.001]
[1764078759144,17.97613176,2910.3,2910.2,0.001]
[1764078759485,18.46586176,2910.3,2910.2,0.001]
[1764078759653,14.36436176,2910.3,2910.2,0.001]
[1764078759840,11.68178,2910.0,2908.8,0.1897]
[1764078760050,1.13109811,2909.4,2908.9,0.487]
[1764078760345,0.405504,2909.2,2908.9,0.487]
[1764078760552,0.3165927,2909.1,2908.8,0.1897]
[1764078760965,0.3165927,2909.1,2909.0,0.4544]
[1764078761167,0.626504,2909.1,2909.0,0.4544]
[1764078761483,0.626504,2909.1,2909.0,0.9414]
[1764078761689,0.94199091,2909.1,2909.0,0.9414]
[1764078761886,1.35209811,2909.1,2909.0,0.9414]
[1764078762067,4.38408336,2909.1,2909.0,0.9414]
[1764078762589,1.13109811,2909.0,2908.7,0.1897]
[1764078762755,1.13109811,2909.0,2908.8,0.487]
[1764078762957,1.13109811,2909.0,2908.9,0.4544]
[1764078763160,3.65850524,2909.1,2908.9,0.4544]
[1764078763360,0.221,2909.1,2909.0,0.9414]
[1764078766773,3.65848925,2909.1,2909.0,0.9414]
[1764078766994,0.221,2909.1,2909.0,0.9414]
[1764078767185,0.221,2909.1,2909.0,0.9424]
[1764078767497,3.65848925,2909.1,2909.0,0.9424]
[1764078767798,4.38408336,2909.1,2909.0,0.9424]
[1764078767958,4.78958736,2909.1,2909.0,0.9424]
[1764078768294,4.78878736,2909.1,2909.0,0.4554]
[1764078768594,4.78878736,2909.1,2909.0,0.001]
[1764078768766,4.83175597,2909.1,2909.0,0.001]
[1764078769788,4.89555597,2909.1,2909.0,0.001]
[1764078770092,5.21055484,2909.1,2909.0,0.001]
[1764078770298,5.66235484,2909.1,2909.0,0.001]
[1764078770485,6.29815558,2909.1,2909.0,0.001]
[1764078770802,6.76426131,2909.1,2909.0,0.001]
[1764078770965,6.7212927,2909.1,2909.0,0.001]
[1764078771299,7.44730489,2909.1,2909.0,0.001]
[1764078771997,14.14400789,2909.1,2909.0,0.001]
[1764078772587,13.22610216,2909.1,2909.0,0.001]
[1764078772990,6.52939916,2909.1,2909.0,0.001]
[1764078773291,9.09816777,2909.1,2909.0,0.001]
[1764078773476,9.05519916,2909.1,2909.0,0.001]
[1764078774486,5.82979842,2909.1,2909.0,0.4858]
[1764078775101,5.82979842,2909.1,2909.0,0.001]
[1764078776217,5.82979842,2909.1,2909.0,0.9569]
[1764078776390,5.82979842,2909.1,2909.0,0.001]
[1764078776915,6.56749916,2909.1,2909.0,0.001]
[1764078777119,7.03360489,2909.1,2909.0,0.001]
[1764078777285,27.67543589,2909.1,2909.0,0.001]
[1764078777486,24.84065689,2909.1,2909.0,0.001]
[1764078777691,23.88650689,2909.1,2909.0,0.001]
[1764078778820,34.77998331,2909.1,2908.7,0.001]
[1764078779023,6.13164329,2908.8,2908.7,0.001]
[1764078779345,7.40746321,2908.8,2908.7,0.001]
[1764078779522,18.79242117,2908.8,2908.7,0.001]
[1764078779690,1.13109811,2908.7,2908.4,0.001]
[1764078779890,1.40276133,2908.5,2908.4,0.001]
[1764078780102,6.98334203,2908.5,2908.4,0.001]
[1764078780430,6.98334203,2908.5,2907.4,0.6904]
[1764078780431,1.13109811,2908.1,2907.4,0.1906]
[1764078780643,1.13109811,2908.1,2907.2,0.5008]
[1764078780644,1.31879811,2907.9,2907.2,0.6914]
[1764078780930,3.47825446,2907.9,2907.2,0.1916]
[1764078781087,5.72606093,2907.9,2907.2,0.001]
[1764078781287,6.3337767,2907.9,2907.2,0.001]
[1764078781522,5.89708991,2907.9,2907.2,0.5008]
[1764078781696,8.04826698,2907.9,2907.2,0.001]
[1764078781897,8.96887271,2907.9,2907.2,0.001]
[1764078782219,11.95328051,2907.9,2907.2,0.5008]
[1764078782522,11.95328051,2907.9,2907.2,0.001]
[1764078782523,13.92946144,2907.9,2907.2,0.001]
[1764078782726,12.95754544,2907.9,2907.2,0.001]
[1764078782886,13.41204544,2907.9,2907.2,0.001]
[1764078783100,15.23614951,2907.9,2907.2,0.001]
[1764078783500,22.04132151,2907.9,2907.2,0.001]
[1764078783800,20.21721744,2907.9,2907.2,0.001]
[1764078784027,19.73652144,2907.9,2907.2,0.001]
[1764078784231,19.53432144,2907.9,2907.2,0.001]
[1764078784535,30.58276723,2907.9,2907.2,0.001]
[1764078784704,1.62459513,2907.6,2907.2,0.001]
[1764078784897,3.65519108,2907.6,2907.2,0.001]
[1764078785104,4.11339108,2907.6,2907.2,0.001]
[1764078785453,4.11339108,2907.6,2907.0,0.001]
[1764078785454,0.405504,2907.2,2907.0,0.001]
[1764078785741,0.405504,2907.2,2905.0,3.63287517]
[1764078785742,1.13109811,2906.6,2905.6,0.6904]
[1764078785934,0.405504,2906.2,2906.1,0.1906]
[1764078786143,4.16142228,2906.2,2906.1,0.1906]
[1764078786351,5.61302858,2906.2,2906.1,0.6426]
[1764078786548,6.64743464,2906.2,2906.1,0.6426]
[1764078786704,6.64743464,2906.2,2906.1,1.1424]
[1764078787025,19.9318,2906.2,2905.7,0.4998]
[1764078787202,0.405504,2906.0,2905.6,0.1906]
[1764078787402,0.405504,2905.8,2905.6,0.1906]
[1764078787597,0.405504,2905.6,2905.3,0.4998]
[1764078787832,0.405504,2905.4,2905.1,0.4998]
[1764078788013,0.53599887,2905.3,2905.1,0.4998]
[1764078788237,3.75710268,2905.2,2905.1,0.4998]
[1764078788630,0.31499887,2905.2,2905.1,0.9518]
[1764078789156,0.91035057,2906.2,2905.1,0.9518]
[1764078789352,0.72559411,2906.0,2905.2,0.9518]
[1764078789557,0.31504512,2905.9,2905.2,0.9518]
[1764078789747,0.72054912,2905.8,2905.3,0.4998]
[1764078789944,0.53604512,2905.7,2905.3,0.4998]
[1764078790149,0.31504512,2905.6,2905.3,0.4998]
[1764078790351,0.72559411,2905.4,2905.0,0.1906]
[1764078790668,0.94154912,2905.3,2904.7,0.4998]
[1764078790834,1.13109811,2904.9,2904.7,0.4998]
[1764078791031,0.53604512,2904.8,2904.7,0.4998]
[1764078791345,0.405504,2904.7,2904.3,0.4998]
[1764078791671,0.31504512,2904.6,2904.3,0.4998]
[1764078792034,0.31504512,2904.5,2904.3,0.4998]
[1764078792233,0.221,2904.4,2904.3,0.4998]
[1764078792784,0.221,2904.4,2904.3,4.39497047]
[1764078792961,3.44192879,2905.4,2904.3,7.83814094]
[1764078793138,0.53479888,2905.3,2905.1,0.1906]
[1764078793327,0.221,2905.3,2905.1,0.1906]
[1764078793534,0.221,2905.3,2905.2,0.452]
[1764078794066,0.221,2905.3,2905.2,0.9518]